[Event "Mitropa Online Cup Open 2021"]
[Site "Hybrid"]
[Date "2021.05.04"]
[Round "5.1"]
[White "Krastev, Alexander"]
[Black "Dobrovoljc, Vid"]
[Result "1/2-1/2"]
[ECO "C55"]
[WhiteElo "2367"]
[BlackElo "2377"]
[Annotator "NA"]
[PlyCount "63"]
[EventDate "2021.05.04"]
[EventType "team-tourn"]
[EventCountry "NET"]
[SourceTitle "playchess.com"]
[Source "ChessBase"]
[SourceQuality "1"]
[WhiteTeam "Germany"]
[BlackTeam "Slovenia"]
[WhiteTeamCountry "GER"]
[BlackTeamCountry "SLO"]
[TimeControl "40/5400+30:1800+30"]

1. e4 {[%emt 0:00:00]} e5 {[%emt 0:00:44]} 2. Nf3 {[%emt 0:00:16]} Nc6 {[%emt 0:00:14]} 3. Bc4 {[%emt 0:00:07]} Nf6 {[%emt 0:00:55]} 4. d3 {[%emt 0:00:10]} Be7 {[%emt 0:01:00]} 5. O-O {[%emt 0:00:25]} O-O {[%emt 0:00:41]} 6. Re1 {[%emt 0:00:14]} d6 {[%emt 0:00:10]} 7. a4 {[%emt 0:00:05]} Kh8 {[%emt 0:08:41]} 8. h3 {[%emt 0:00:37]} Be6 {[%emt 0:00:47]} 9. Nbd2 {[%emt 0:04:51]} Qd7 {[%emt 0:01:46]} 10. Nf1 {[%emt 0:02:33]} Rad8 {[%emt 0:07:09]} 11. Ng3 {[%emt 0:06:57]} h6 {[%emt 0:13:21]} 12. c3 {[%emt 0:11:57]} Rfe8 {[%emt 0:07:17]} 13. a5 {[%emt 0:08:49]} a6 {[%emt 0:06:08]} 14. Bxe6 {[%emt 0:05:22]} Qxe6 {[%emt 0:00:44]} 15. d4 {[%emt 0:06:44]} d5 {[%emt 0:07:33]} 16. Qb3 {[%emt 0:04:11]} Nxe4 {[%emt 0:11:06]} 17. Nxe4 {[%emt 0:07:07]} dxe4 {[%emt 0:00:08]} 18. Qxe6 {[%emt 0:00:08]} fxe6 {[%emt 0:00:05]} 19. Nxe5 {[%emt 0:00:02]} Nxe5 {[%emt 0:00:09]} 20. dxe5 {[%emt 0:00:06]} Rf8 {[%emt 0:00:16]} 21. Be3 {[%emt 0:02:57]} Rd5 {[%emt 0:01:44]} 22. b4 {[%emt 0:01:43]} Rxe5 {[%emt 0:15:05]} 23. Bd4 {[%emt 0:00:35]} Rd5 {[%emt 0:00:04]} 24. Rxe4 {[%emt 0:00:25]} c5 {[%emt 0:03:12]} 25. bxc5 {[%emt 0:07:42]} Bxc5 {[%emt 0:00:08]} 26. Rxe6 {[%emt 0:00:16]} Bxd4 {[%emt 0:00:14]} 27. cxd4 {[%emt 0:00:02]} Rxd4 {[%emt 0:00:18]} 28. Ra2 {[%emt 0:09:05]} Rf7 {[%emt 0:00:43]} 29. Re5 {[%emt 0:01:32]} Rfd7 {[%emt 0:00:11]} 30. f3 {[%emt 0:01:56]} Rd2 {[%emt 0:01:52]} 31. Rxd2 {[%emt 0:00:54]} Rxd2 {[%emt 0:00:09]} 32. Re7 {[%emt 0:00:10]} 1/2-1/2

[Event "Mitropa Online Cup Open 2021"]
[Site "Hybrid"]
[Date "2021.05.04"]
[Round "5.2"]
[White "Moroni, Luca Jr"]
[Black "Rogic, Davor"]
[Result "1-0"]
[ECO "D52"]
[WhiteElo "2557"]
[BlackElo "2492"]
[Annotator "ChessBase"]
[PlyCount "51"]
[EventDate "2021.05.04"]
[EventType "team-tourn"]
[EventCountry "NET"]
[SourceTitle "playchess.com"]
[Source "ChessBase"]
[SourceQuality "1"]
[WhiteTeam "Italy"]
[BlackTeam "Croatia"]
[WhiteTeamCountry "ITA"]
[BlackTeamCountry "CRO"]
[TimeControl "40/5400+30:1800+30"]

1. d4 {[%emt 0:00:00]} d5 {[%emt 0:00:14]} 2. c4 {[%emt 0:00:10]} c6 {[%emt 0:00:05]} 3. Nc3 {[%emt 0:00:16]} Nf6 {[%emt 0:00:07]} 4. Nf3 {[%emt 0:00:03]} e6 {[%emt 0:00:25]} 5. Bg5 {[%emt 0:00:03]} Nbd7 {[%emt 0:00:23]} 6. e3 {[%emt 0:00:03]} Qa5 {[%emt 0:00:18]} 7. Nd2 {[%emt 0:00:21]} dxc4 {[%emt 0:00:19]} 8. Bxf6 {[%emt 0:00:03]} Nxf6 {[%emt 0:00:08]} 9. Nxc4 {[%emt 0:00:01]} Qc7 {[%emt 0:00:17]} 10. Rc1 {[%emt 0:00:03]} Be7 {[%emt 0:00:30]} 11. g3 {[%emt 0:00:03]} O-O {[%emt 0:00:35]} 12. Bg2 {[%emt 0:00:03]} Rd8 {[%emt 0:00:32]} 13. O-O {[%emt 0:00:04]} Bd7 {[%emt 0:00:22]} 14. e4 {[%emt 0:00:04]} Rac8 {[%emt 0:14:36]} 15. e5 {[%emt 0:04:54]} Ne8 {[%emt 0:00:45]} 16. a3 {[%emt 0:06:37]} a5 {[%emt 0:22:32]} 17. Qd2 {[%emt 0:07:44]} b6 {[%emt 0:09:32]} 18. f4 {[%emt 0:06:12]} Qa7 {[%emt 0:02:32]} 19. Ne3 {[%emt 0:07:53]} Nc7 {[%emt 0:07:57]} 20. Kh1 {[%emt 0:09:06]} b5 {[%emt 0:14:15]} 21. Ne4 {[%emt 0:05:33]} Be8 {[%emt 0:01:01]} 22. Rfd1 {[%emt 0:05:37]} b4 {[%emt 0:01:48]} 23. a4 {[%emt 0:06:43]} c5 {[%emt 0:02:06]} 24. Nxc5 {[%emt 0:03:05]} Nb5 {[%emt 0:04:32]} 25. axb5 {[%emt 0:13:14]} Rxc5 {[%emt 0:00:56]} 26. b6 {[%emt 0:03:32]} 1-0

[Event "Mitropa Online Cup Open 2021"]
[Site "Hybrid"]
[Date "2021.05.04"]
[Round "5.2"]
[White "Brunello, Sabino"]
[Black "Zelcic, Robert"]
[Result "1/2-1/2"]
[ECO "A32"]
[WhiteElo "2519"]
[BlackElo "2539"]
[Annotator "ChessBase"]
[PlyCount "186"]
[EventDate "2021.05.04"]
[EventType "team-tourn"]
[EventCountry "NET"]
[SourceTitle "playchess.com"]
[Source "ChessBase"]
[SourceQuality "1"]
[WhiteTeam "Italy"]
[BlackTeam "Croatia"]
[WhiteTeamCountry "ITA"]
[BlackTeamCountry "CRO"]
[TimeControl "40/5400+30:1800+30"]

1. d4 {[%emt 0:00:00]} Nf6 {[%emt 0:00:07]} 2. c4 {[%emt 0:00:12]} e6 {[%emt 0:00:06]} 3. Nf3 {[%emt 0:00:04]} Bb4+ {[%emt 0:00:06]} 4. Nc3 {[%emt 0:02:59]} c5 {[%emt 0:00:23]} 5. Bd2 {[%emt 0:11:51]} cxd4 {[%emt 0:08:43]} 6. Nxd4 {[%emt 0:00:15]} O-O {[%emt 0:00:07]} 7. e3 {[%emt 0:04:52]} d5 {[%emt 0:03:22]} 8. cxd5 {[%emt 0:05:20]} Nxd5 {[%emt 0:02:00]} 9. Nxd5 {[%emt 0:13:03]} Bxd2+ {[%emt 0:00:26]} 10. Qxd2 {[%emt 0:00:06]} Qxd5 {[%emt 0:00:37]} 11. Rc1 {[%emt 0:02:10]} Rd8 {[%emt 0:08:07]} 12. Qc3 {[%emt 0:32:04]} Bd7 {[%emt 0:11:59]} 13. Qc4 {[%emt 0:07:03]} Qd6 {[%emt 0:00:45]} 14. Be2 {[%emt 0:05:45]} Nc6 {[%emt 0:08:43]} 15. Nb5 {[%emt 0:02:06]} Qe5 {[%emt 0:00:57]} 16. Nc3 {[%emt 0:05:04]} Ne7 {[%emt 0:28:08]} 17. Qb4 {[%emt 0:01:04]} Nf5 {[%emt 0:02:38]} 18. Bf3 {[%emt 0:01:33]} a5 {[%emt 0:04:50]} 19. Qb6 {[%emt 0:02:43]} Bc6 {[%emt 0:00:28]} 20. Bxc6 {[%emt 0:00:57]} bxc6 {[%emt 0:00:06]} 21. O-O {[%emt 0:00:15]} Rab8 {[%emt 0:00:42]} 22. Rfd1 {[%emt 0:00:08]} Rf8 {[%emt 0:03:13]} 23. Qxc6 {[%emt 0:00:09]} Rxb2 {[%emt 0:00:05]} 24. a4 {[%emt 0:00:19]} h6 {[%emt 0:00:43]} 25. Qe4 {[%emt 0:00:38]} Qxe4 {[%emt 0:01:03]} 26. Nxe4 {[%emt 0:00:02]} Rfb8 {[%emt 0:02:20]} 27. g3 {[%emt 0:00:10]} Ra2 {[%emt 0:00:11]} 28. Ra1 {[%emt 0:00:37]} Rc2 {[%emt 0:01:06]} 29. Rdc1 {[%emt 0:00:27]} Rbc8 {[%emt 0:01:05]} 30. Rxc2 {[%emt 0:00:02]} Rxc2 {[%emt 0:00:04]} 31. Kf1 {[%emt 0:00:18]} g5 {[%emt 0:00:24]} 32. g4 {[%emt 0:00:48]} Nh4 {[%emt 0:01:12]} 33. h3 {[%emt 0:01:07]} f5 {[%emt 0:00:51]} 34. Nd6 {[%emt 0:00:32]} f4 {[%emt 0:02:20]} 35. exf4 {[%emt 0:00:12]} gxf4 {[%emt 0:00:11]} 36. Nb7 {[%emt 0:00:03]} e5 {[%emt 0:00:09]} 37. Nxa5 {[%emt 0:00:33]} e4 {[%emt 0:00:24]} 38. Nb3 {[%emt 0:00:29]} e3 {[%emt 0:00:07]} 39. fxe3 {[%emt 0:00:05]} fxe3 {[%emt 0:00:13]} 40. Nd4 {[%emt 0:00:00]} Rf2+ {[%emt 0:00:00]} 41. Kg1 {[%emt 0:07:43]} Rd2 {[%emt 0:03:15]} 42. Ra3 {[%emt 0:07:29]} Rxd4 {[%emt 0:00:06]} 43. Rxe3 {[%emt 0:00:07]} Rxa4 {[%emt 0:00:04]} 44. Kf2 {[%emt 0:00:07]} Kf7 {[%emt 0:00:04]} 45. Kg3 {[%emt 0:00:33]} Ng6 {[%emt 0:00:05]} 46. Rb3 {[%emt 0:01:20]} Re4 {[%emt 0:02:59]} 47. Ra3 {[%emt 0:00:26]} Re7 {[%emt 0:06:42]} 48. Rf3+ {[%emt 0:00:37]} Kg7 {[%emt 0:00:05]} 49. Ra3 {[%emt 0:00:07]} Ne5 {[%emt 0:00:13]} 50. Kh4 {[%emt 0:05:46]} Ng6+ {[%emt 0:09:45]} 51. Kg3 {[%emt 0:00:05]} Rd7 {[%emt 0:00:03]} 52. Rb3 {[%emt 0:00:22]} Ne5 {[%emt 0:00:26]} 53. Kh4 {[%emt 0:01:24]} Nf7 {[%emt 0:01:28]} 54. Ra3 {[%emt 0:01:53]} Kg6 {[%emt 0:00:41]} 55. Ra6+ {[%emt 0:00:51]} Rd6 {[%emt 0:00:37]} 56. Ra3 {[%emt 0:00:24]} Ng5 {[%emt 0:00:28]} 57. Kg3 {[%emt 0:02:02]} Rc6 {[%emt 0:01:09]} 58. Kh4 {[%emt 0:00:54]} Ne4 {[%emt 0:00:38]} 59. Re3 {[%emt 0:02:06]} Rc4 {[%emt 0:01:53]} 60. Re1 {[%emt 0:03:23]} Ng5 {[%emt 0:06:07]} 61. Re3 {[%emt 0:00:11]} Rc1 {[%emt 0:00:12]} 62. Ra3 {[%emt 0:00:13]} Rh1 {[%emt 0:00:33]} 63. Ra6+ {[%emt 0:01:01]} Kg7 {[%emt 0:00:37]} 64. Ra3 {[%emt 0:00:30]} Ne6 {[%emt 0:04:19]} 65. Ra7+ {[%emt 0:02:13]} Kg6 {[%emt 0:00:51]} 66. Ra6 {[%emt 0:01:02]} Re1 {[%emt 0:00:28]} 67. Ra3 {[%emt 0:00:21]} Nf4 {[%emt 0:00:55]} 68. Kg3 {[%emt 0:00:43]} Nd5 {[%emt 0:00:31]} 69. Ra6+ {[%emt 0:01:39]} Kg7 {[%emt 0:00:05]} 70. Kh4 {[%emt 0:00:45]} Re7 {[%emt 0:04:16]} 71. Ra3 {[%emt 0:00:17]} Re6 {[%emt 0:00:24]} 72. Ra5 {[%emt 0:00:51]} Re5 {[%emt 0:04:23]} 73. Ra7+ {[%emt 0:00:29]} Kf6 {[%emt 0:00:09]} 74. Ra6+ {[%emt 0:00:07]} Kg7 {[%emt 0:00:05]} 75. Ra7+ {[%emt 0:00:04]} Kg6 {[%emt 0:00:05]} 76. Ra6+ {[%emt 0:00:09]} Nf6 {[%emt 0:00:04]} 77. Ra3 {[%emt 0:00:06]} Re6 {[%emt 0:00:14]} 78. Kg3 {[%emt 0:00:37]} Rd6 {[%emt 0:00:05]} 79. Kh4 {[%emt 0:00:08]} Nd7 {[%emt 0:00:15]} 80. Ra5 {[%emt 0:00:46]} Nf8 {[%emt 0:00:11]} 81. Ra8 {[%emt 0:00:30]} Ne6 {[%emt 0:00:09]} 82. Ra3 {[%emt 0:00:22]} Nf4 {[%emt 0:00:11]} 83. Ra4 {[%emt 0:02:04]} Ng2+ {[%emt 0:00:35]} 84. Kg3 {[%emt 0:00:04]} Ne1 {[%emt 0:00:04]} 85. Kf2 {[%emt 0:00:34]} Nd3+ {[%emt 0:01:41]} 86. Kg3 {[%emt 0:00:04]} Nc5 {[%emt 0:00:40]} 87. Ra5 {[%emt 0:00:11]} Ne6 {[%emt 0:02:05]} 88. Kh4 {[%emt 0:00:49]} Ng5 {[%emt 0:00:08]} 89. Ra3 {[%emt 0:00:10]} Rf6 {[%emt 0:00:25]} 90. Kg3 {[%emt 0:00:22]} Rc6 {[%emt 0:00:15]} 91. Kh4 {[%emt 0:00:17]} Ne4 {[%emt 0:00:56]} 92. Re3 {[%emt 0:00:28]} Rc4 {[%emt 0:00:20]} 93. Ra3 {[%emt 0:00:15]} Rd4 {[%emt 0:00:13]} 1/2-1/2

[Event "Mitropa Online Cup Open 2021"]
[Site "Hybrid"]
[Date "2021.05.04"]
[Round "5.2"]
[White "Kovacevic, Blazimir"]
[Black "Basso, Pier Luigi"]
[Result "0-1"]
[ECO "D02"]
[WhiteElo "2410"]
[BlackElo "2552"]
[Annotator "ChessBase"]
[PlyCount "86"]
[EventDate "2021.05.04"]
[EventType "team-tourn"]
[EventCountry "NET"]
[SourceTitle "playchess.com"]
[Source "ChessBase"]
[SourceQuality "1"]
[WhiteTeam "Croatia"]
[BlackTeam "Italy"]
[WhiteTeamCountry "CRO"]
[BlackTeamCountry "ITA"]
[TimeControl "40/5400+30:1800+30"]

1. Nf3 {[%emt 0:00:00]} d5 {[%emt 0:00:38]} 2. g3 {[%emt 0:00:05]} Nc6 {[%emt 0:00:53]} 3. d4 {[%emt 0:00:14]} Bf5 {[%emt 0:01:03]} 4. Bg2 {[%emt 0:00:56]} Nb4 {[%emt 0:01:49]} 5. Na3 {[%emt 0:00:08]} e6 {[%emt 0:00:16]} 6. O-O {[%emt 0:00:12]} Be7 {[%emt 0:05:21]} 7. c3 {[%emt 0:06:11]} Nc6 {[%emt 0:01:06]} 8. Qa4 {[%emt 0:00:46]} Bxa3 {[%emt 0:13:13]} 9. Qxa3 {[%emt 0:00:30]} Be4 {[%emt 0:00:09]} 10. Re1 {[%emt 0:12:40]} Nge7 {[%emt 0:08:35]} 11. Bf1 {[%emt 0:04:08]} O-O {[%emt 0:03:26]} 12. Nd2 {[%emt 0:13:23]} Bg6 {[%emt 0:00:31]} 13. e4 {[%emt 0:00:06]} Qd7 {[%emt 0:10:05]} 14. Bh3 {[%emt 0:04:49]} b5 {[%emt 0:03:34]} 15. exd5 {[%emt 0:12:29]} Nxd5 {[%emt 0:00:20]} 16. Qc5 {[%emt 0:00:19]} Rab8 {[%emt 0:10:31]} 17. Nf3 {[%emt 0:01:45]} b4 {[%emt 0:07:05]} 18. Ne5 {[%emt 0:06:13]} Nxe5 {[%emt 0:00:11]} 19. dxe5 {[%emt 0:00:02]} bxc3 {[%emt 0:02:02]} 20. bxc3 {[%emt 0:00:20]} Qa4 {[%emt 0:03:16]} 21. Bf1 {[%emt 0:06:58]} Rb6 {[%emt 0:04:23]} 22. Be3 {[%emt 0:07:18]} Rfb8 {[%emt 0:03:58]} 23. Qd4 {[%emt 0:08:53]} Qa3 {[%emt 0:01:26]} 24. c4 {[%emt 0:03:45]} Nxe3 {[%emt 0:03:07]} 25. Rxe3 {[%emt 0:00:04]} Qa5 {[%emt 0:00:21]} 26. Rd1 {[%emt 0:04:56]} h6 {[%emt 0:00:34]} 27. a3 {[%emt 0:02:08]} Rb2 {[%emt 0:01:02]} 28. Bd3 {[%emt 0:01:06]} Rd2 {[%emt 0:05:26]} 29. Rxd2 {[%emt 0:02:15]} Qxd2 {[%emt 0:00:04]} 30. Qxa7 {[%emt 0:00:03]} Rb2 {[%emt 0:00:30]} 31. Qa8+ {[%emt 0:00:37]} Kh7 {[%emt 0:00:04]} 32. Bxg6+ {[%emt 0:00:04]} fxg6 {[%emt 0:00:07]} 33. Qf3 {[%emt 0:00:58]} Qc1+ {[%emt 0:00:45]} 34. Kg2 {[%emt 0:00:03]} Rb1 {[%emt 0:00:14]} 35. Qe2 {[%emt 0:01:34]} c5 {[%emt 0:01:25]} 36. Rf3 {[%emt 0:01:01]} Qh1+ {[%emt 0:00:29]} 37. Kh3 {[%emt 0:00:05]} Rg1 {[%emt 0:00:08]} 38. Kg4 {[%emt 0:01:01]} Re1 {[%emt 0:01:42]} 39. Qd3 {[%emt 0:00:20]} Qxh2 {[%emt 0:03:54]} 40. Rf7 {[%emt 0:00:00]} Qh5+ {[%emt 0:00:00]} 41. Kf4 {[%emt 0:00:52]} Qxe5+ {[%emt 0:03:29]} 42. Kf3 {[%emt 0:02:17]} Qh5+ {[%emt 0:00:16]} 43. Kf4 {[%emt 0:00:09]} e5# {[%emt 0:00:09]} 0-1

[Event "Mitropa Online Cup Open 2021"]
[Site "Hybrid"]
[Date "2021.05.04"]
[Round "5.2"]
[White "Tica, Sven"]
[Black "Lodici, Lorenzo"]
[Result "0-1"]
[ECO "A62"]
[WhiteElo "2396"]
[BlackElo "2483"]
[Annotator "ChessBase"]
[PlyCount "98"]
[EventDate "2021.05.04"]
[EventType "team-tourn"]
[EventCountry "NET"]
[SourceTitle "playchess.com"]
[Source "ChessBase"]
[SourceQuality "1"]
[WhiteTeam "Croatia"]
[BlackTeam "Italy"]
[WhiteTeamCountry "CRO"]
[BlackTeamCountry "ITA"]
[TimeControl "40/5400+30:1800+30"]

1. d4 {[%emt 0:00:00]} Nf6 {[%emt 0:00:05]} 2. c4 {[%emt 0:00:05]} e6 {[%emt 0:00:06]} 3. g3 {[%emt 0:00:05]} c5 {[%emt 0:00:04]} 4. d5 {[%emt 0:00:09]} exd5 {[%emt 0:00:05]} 5. cxd5 {[%emt 0:00:01]} d6 {[%emt 0:00:03]} 6. Nc3 {[%emt 0:00:02]} g6 {[%emt 0:00:04]} 7. Bg2 {[%emt 0:00:03]} Bg7 {[%emt 0:00:04]} 8. Nf3 {[%emt 0:00:01]} O-O {[%emt 0:00:05]} 9. O-O {[%emt 0:00:04]} Nbd7 {[%emt 0:00:02]} 10. Nd2 {[%emt 0:01:09]} Nh5 {[%emt 0:00:08]} 11. e4 {[%emt 0:06:55]} Ne5 {[%emt 0:00:54]} 12. Qe2 {[%emt 0:16:23]} Re8 {[%emt 0:00:33]} 13. Nc4 {[%emt 0:02:54]} f5 {[%emt 0:05:41]} 14. Nxe5 {[%emt 0:08:00]} Bxe5 {[%emt 0:00:17]} 15. Bh6 {[%emt 0:10:50]} a6 {[%emt 0:13:16]} 16. a4 {[%emt 0:04:56]} Nf6 {[%emt 0:00:11]} 17. f3 {[%emt 0:07:04]} Rb8 {[%emt 0:04:39]} 18. Bg5 {[%emt 0:04:12]} Qc7 {[%emt 0:03:18]} 19. a5 {[%emt 0:04:15]} b5 {[%emt 0:03:44]} 20. axb6 {[%emt 0:01:30]} Rxb6 {[%emt 0:00:12]} 21. Na4 {[%emt 0:01:29]} Rb8 {[%emt 0:05:11]} 22. Rfd1 {[%emt 0:03:33]} fxe4 {[%emt 0:05:24]} 23. f4 {[%emt 0:01:03]} Bg4 {[%emt 0:01:17]} 24. Qc2 {[%emt 0:00:42]} Bxd1 {[%emt 0:10:02]} 25. Rxd1 {[%emt 0:00:54]} c4 {[%emt 0:09:00]} 26. fxe5 {[%emt 0:05:06]} Qa7+ {[%emt 0:00:05]} 27. Qf2 {[%emt 0:02:19]} Qxf2+ {[%emt 0:00:05]} 28. Kxf2 {[%emt 0:00:03]} Ng4+ {[%emt 0:00:17]} 29. Ke2 {[%emt 0:00:47]} Nxe5 {[%emt 0:00:21]} 30. Be3 {[%emt 0:04:36]} Rb4 {[%emt 0:07:28]} 31. Ra1 {[%emt 0:00:46]} Nd3 {[%emt 0:01:26]} 32. Bd4 {[%emt 0:01:08]} Rb5 {[%emt 0:01:31]} 33. Ke3 {[%emt 0:02:40]} Nb4 {[%emt 0:01:49]} 34. Rc1 {[%emt 0:04:28]} Nxd5+ {[%emt 0:00:10]} 35. Ke2 {[%emt 0:00:40]} Rb4 {[%emt 0:02:03]} 36. Bh3 {[%emt 0:00:36]} Re7 {[%emt 0:02:35]} 37. Ra1 {[%emt 0:00:41]} Kf7 {[%emt 0:01:43]} 38. Ra2 {[%emt 0:00:51]} Rb3 {[%emt 0:00:43]} 39. Bc8 {[%emt 0:01:22]} Nb4 {[%emt 0:09:13]} 40. Ra1 {[%emt 0:00:00]} Nc2 {[%emt 0:00:00]} 41. Rf1+ {[%emt 0:00:16]} Rf3 {[%emt 0:00:13]} 42. Bc3 {[%emt 0:02:07]} Rxf1 {[%emt 0:01:30]} 43. Kxf1 {[%emt 0:00:05]} d5 {[%emt 0:00:31]} 44. Bxa6 {[%emt 0:00:12]} Ra7 {[%emt 0:01:09]} 45. Bb5 {[%emt 0:00:08]} Ke7 {[%emt 0:01:19]} 46. Ke2 {[%emt 0:00:48]} d4 {[%emt 0:03:28]} 47. Bxc4 {[%emt 0:00:54]} Rxa4 {[%emt 0:00:23]} 48. Bb3 {[%emt 0:00:06]} dxc3 {[%emt 0:00:19]} 49. Bxa4 {[%emt 0:00:12]} Nd4+ {[%emt 0:00:05]} 0-1

[Event "Mitropa Online Cup Open 2021"]
[Site "Hybrid"]
[Date "2021.05.04"]
[Round "5.3"]
[White "Studer, Noel"]
[Black "Sochacki, Christophe"]
[Result "1-0"]
[ECO "A88"]
[WhiteElo "2579"]
[BlackElo "2477"]
[Annotator "ChessBase"]
[PlyCount "145"]
[EventDate "2021.05.04"]
[EventType "team-tourn"]
[EventCountry "NET"]
[SourceTitle "playchess.com"]
[Source "ChessBase"]
[SourceQuality "1"]
[WhiteTeam "Switzerland"]
[BlackTeam "France"]
[WhiteTeamCountry "SUI"]
[BlackTeamCountry "FRA"]
[TimeControl "40/5400+30:1800+30"]

1. d4 {[%emt 0:00:00]} f5 {[%emt 0:00:23]} 2. c4 {[%emt 0:00:16]} Nf6 {[%emt 0:00:15]} 3. g3 {[%emt 0:00:12]} g6 {[%emt 0:00:10]} 4. Bg2 {[%emt 0:00:04]} Bg7 {[%emt 0:00:10]} 5. Nf3 {[%emt 0:00:02]} O-O {[%emt 0:00:15]} 6. O-O {[%emt 0:00:02]} d6 {[%emt 0:00:13]} 7. Nc3 {[%emt 0:00:04]} c6 {[%emt 0:00:23]} 8. Re1 {[%emt 0:02:30]} Na6 {[%emt 0:00:22]} 9. a3 {[%emt 0:05:32]} h6 {[%emt 0:00:30]} 10. Qc2 {[%emt 0:02:58]} Qe8 {[%emt 0:02:29]} 11. b4 {[%emt 0:09:33]} g5 {[%emt 0:23:15]} 12. c5 {[%emt 0:17:29]} Nc7 {[%emt 0:21:22]} 13. Bb2 {[%emt 0:02:12]} Qh5 {[%emt 0:02:58]} 14. b5 {[%emt 0:04:51]} f4 {[%emt 0:10:35]} 15. a4 {[%emt 0:19:17]} Bh3 {[%emt 0:03:17]} 16. Bh1 {[%emt 0:05:30]} Rf7 {[%emt 0:07:37]} 17. bxc6 {[%emt 0:07:27]} bxc6 {[%emt 0:00:04]} 18. d5 {[%emt 0:01:08]} Raf8 {[%emt 0:06:21]} 19. cxd6 {[%emt 0:02:22]} exd6 {[%emt 0:00:14]} 20. dxc6 {[%emt 0:00:09]} fxg3 {[%emt 0:03:24]} 21. hxg3 {[%emt 0:05:21]} Ng4 {[%emt 0:02:57]} 22. Ne4 {[%emt 0:02:20]} Bxb2 {[%emt 0:00:44]} 23. Qxb2 {[%emt 0:00:04]} d5 {[%emt 0:00:40]} 24. Ned2 {[%emt 0:02:07]} d4 {[%emt 0:06:48]} 25. Qxd4 {[%emt 0:03:33]} Ne6 {[%emt 0:00:19]} 26. Qc4 {[%emt 0:01:40]} Nf4 {[%emt 0:02:38]} 27. c7 {[%emt 0:03:27]} Rc8 {[%emt 0:00:13]} 28. Rab1 {[%emt 0:01:08]} Rcxc7 {[%emt 0:00:59]} 29. Rb8+ {[%emt 0:00:33]} Kh7 {[%emt 0:00:06]} 30. Qd4 {[%emt 0:00:47]} Rg7 {[%emt 0:03:00]} 31. Qd8 {[%emt 0:00:56]} Rce7 {[%emt 0:00:08]} 32. e3 {[%emt 0:00:49]} Ng6 {[%emt 0:01:09]} 33. Qd3 {[%emt 0:00:35]} Rd7 {[%emt 0:00:18]} 34. Qc2 {[%emt 0:00:13]} Rgf7 {[%emt 0:00:48]} 35. Qc8 {[%emt 0:00:14]} Nf8 {[%emt 0:00:20]} 36. Qc2+ {[%emt 0:00:25]} Kg7 {[%emt 0:00:25]} 37. Rc1 {[%emt 0:01:03]} Nxf2 {[%emt 0:01:08]} 38. Kxf2 {[%emt 0:00:12]} g4 {[%emt 0:00:29]} 39. Qb2+ {[%emt 0:00:29]} Kg8 {[%emt 0:00:34]} 40. Rc4 {[%emt 0:00:00]} gxf3 {[%emt 0:00:00]} 41. Rh4 {[%emt 0:06:50]} Qa5 {[%emt 0:16:02]} 42. Rbb4 {[%emt 0:11:54]} Ng6 {[%emt 0:09:23]} 43. Nc4 {[%emt 0:07:48]} Qf5 {[%emt 0:00:09]} 44. Rxh6 {[%emt 0:04:38]} Rd8 {[%emt 0:03:36]} 45. g4 {[%emt 0:02:00]} Bxg4 {[%emt 0:00:22]} 46. Rxg6+ {[%emt 0:00:27]} Kh7 {[%emt 0:00:45]} 47. Rd6 {[%emt 0:01:46]} Qh5 {[%emt 0:00:49]} 48. Qb1+ {[%emt 0:00:25]} Bf5 {[%emt 0:00:28]} 49. e4 {[%emt 0:00:06]} Qh2+ {[%emt 0:00:37]} 50. Ke3 {[%emt 0:00:02]} Rxd6 {[%emt 0:00:24]} 51. Nxd6 {[%emt 0:00:04]} Qh6+ {[%emt 0:00:47]} 52. Kf2 {[%emt 0:00:14]} Qh2+ {[%emt 0:00:51]} 53. Ke3 {[%emt 0:00:05]} Qe2+ {[%emt 0:02:23]} 54. Kd4 {[%emt 0:00:03]} Qd2+ {[%emt 0:00:07]} 55. Ke5 {[%emt 0:00:44]} Re7+ {[%emt 0:00:28]} 56. Kxf5 {[%emt 0:00:16]} Qxd6 {[%emt 0:00:02]} 57. e5 {[%emt 0:00:10]} Qg6+ {[%emt 0:00:06]} 58. Kf4 {[%emt 0:00:06]} Rf7+ {[%emt 0:00:19]} 59. Ke3 {[%emt 0:00:03]} Rf5 {[%emt 0:02:43]} 60. Rh4+ {[%emt 0:02:24]} Kg7 {[%emt 0:00:20]} 61. Kf2 {[%emt 0:00:05]} Qg5 {[%emt 0:00:37]} 62. Qg1 {[%emt 0:00:04]} Qxg1+ {[%emt 0:01:01]} 63. Kxg1 {[%emt 0:00:03]} Kf7 {[%emt 0:00:15]} 64. Rh7+ {[%emt 0:00:24]} Ke6 {[%emt 0:00:03]} 65. Rxa7 {[%emt 0:00:08]} Rf4 {[%emt 0:00:47]} 66. Ra5 {[%emt 0:00:52]} f2+ {[%emt 0:00:53]} 67. Kf1 {[%emt 0:00:04]} Kf5 {[%emt 0:00:12]} 68. Bg2 {[%emt 0:00:08]} Kg4 {[%emt 0:00:54]} 69. e6 {[%emt 0:00:13]} Rb4 {[%emt 0:00:05]} 70. e7 {[%emt 0:00:31]} Kg3 {[%emt 0:00:15]} 71. Rg5+ {[%emt 0:00:03]} Kh2 {[%emt 0:00:03]} 72. Rh5+ {[%emt 0:00:03]} Kg3 {[%emt 0:00:04]} 73. Rh3+ {[%emt 0:00:01]} 1-0